[Event "*** Titled Tuesday Blitz"]
[Site "Chess.com"]
[Date "2019.08.06"]
[Round "7"]
[White "Evgeny81"]
[Black "Blazinq"]
[Result "0-1"]
[WhiteElo "2538"]
[BlackElo "2611"]
[TimeControl "180+2"]
[EndTime "14:36:24 PDT"]
[Termination "Blazinq won by resignation"]

1. Nf3 {[%clk 0:03:01.9]} 1... Nf6 {[%clk 0:03:00.8]} 2. c4 {[%clk 0:03:03.3]}
2... g6 {[%clk 0:02:56.7]} 3. g3 {[%clk 0:03:04.5]} 3... Bg7 {[%clk 0:02:57.8]}
4. Bg2 {[%clk 0:03:06.1]} 4... O-O {[%clk 0:02:59.5]} 5. O-O {[%clk 0:03:07.7]}
5... c6 {[%clk 0:03:01.4]} 6. d4 {[%clk 0:03:08.7]} 6... d5 {[%clk 0:03:02.9]}
7. Nbd2 {[%clk 0:03:09.8]} 7... a5 {[%clk 0:02:56.8]} 8. b3 {[%clk 0:03:10.3]}
8... a4 {[%clk 0:02:51.8]} 9. Ba3 {[%clk 0:03:09.8]} 9... Ne4 {[%clk 0:02:47.4]}
10. e3 {[%clk 0:03:08.3]} 10... Nxd2 {[%clk 0:02:40.3]} 11. Qxd2 {[%clk
0:03:05.2]} 11... dxc4 {[%clk 0:02:35.8]} 12. bxc4 {[%clk 0:03:05.5]} 12... Re8
{[%clk 0:02:24]} 13. e4 {[%clk 0:02:59.6]} 13... Bg4 {[%clk 0:02:23.7]} 14. Rad1
{[%clk 0:02:59.5]} 14... e6 {[%clk 0:02:12.5]} 15. h3 {[%clk 0:02:58]} 15...
Bxf3 {[%clk 0:02:13.7]} 16. Bxf3 {[%clk 0:02:59.6]} 16... Nd7 {[%clk 0:02:15.6]}
17. Bd6 {[%clk 0:02:49.4]} 17... e5 {[%clk 0:02:11]} 18. c5 {[%clk 0:02:20.5]}
18... exd4 {[%clk 0:02:07.6]} 19. Bg2 {[%clk 0:02:21.8]} 19... b6 {[%clk
0:01:44.6]} 20. f4 {[%clk 0:02:19.4]} 20... bxc5 {[%clk 0:01:01.1]} 21. e5
{[%clk 0:02:18.8]} 21... Qb6 {[%clk 0:00:56.2]} 22. Kh2 {[%clk 0:01:55.7]} 22...
Bf8 {[%clk 0:00:56.1]} 23. Bxf8 {[%clk 0:01:46.7]} 23... Nxf8 {[%clk 0:00:58]}
24. f5 {[%clk 0:01:46]} 24... Rxe5 {[%clk 0:00:54.7]} 25. f6 {[%clk 0:01:34.1]}
25... Re3 {[%clk 0:00:34]} 26. Qf2 {[%clk 0:01:20.7]} 26... Qc7 {[%clk
0:00:34.4]} 27. Rc1 {[%clk 0:01:15.3]} 27... Qd6 {[%clk 0:00:33.6]} 28. Rfd1
{[%clk 0:01:14.1]} 28... Rae8 {[%clk 0:00:33.8]} 29. Rd2 {[%clk 0:01:11.4]}
29... Nd7 {[%clk 0:00:31.2]} 30. Rf1 {[%clk 0:01:11.3]} 30... R8e6 {[%clk
0:00:31.9]} 31. Rfd1 {[%clk 0:01:03.5]} 31... Nxf6 {[%clk 0:00:31.8]} 32. Rb2
{[%clk 0:01:03.5]} 32... Nh5 {[%clk 0:00:28.8]} 33. Bf3 {[%clk 0:01:04.7]} 33...
Nxg3 {[%clk 0:00:19.1]} 34. Bg4 {[%clk 0:00:51.6]} 34... Ne4+ {[%clk 0:00:19.1]}
0-1

[Event "*** Titled Tuesday Blitz"]
[Site "Chess.com"]
[Date "2019.08.06"]
[Round "7"]
[White "qqwow"]
[Black "Leonid_Starozhilov"]
[Result "1-0"]
[WhiteElo "2565"]
[BlackElo "2689"]
[TimeControl "180+2"]
[EndTime "14:36:32 PDT"]
[Termination "qqwow won by resignation"]

1. d4 {[%clk 0:02:57.6]} 1... Nf6 {[%clk 0:03:00.6]} 2. c4 {[%clk 0:02:57.9]}
2... g6 {[%clk 0:03:02]} 3. Nc3 {[%clk 0:02:58.9]} 3... Bg7 {[%clk 0:03:03.6]}
4. e4 {[%clk 0:02:59.6]} 4... d6 {[%clk 0:03:05.2]} 5. Nge2 {[%clk 0:03:00.5]}
5... O-O {[%clk 0:03:06.1]} 6. Ng3 {[%clk 0:03:01.6]} 6... c6 {[%clk 0:03:07.6]}
7. Be2 {[%clk 0:03:02.4]} 7... a6 {[%clk 0:03:09.1]} 8. a3 {[%clk 0:03:03.5]}
8... b5 {[%clk 0:03:09.9]} 9. O-O {[%clk 0:02:47]} 9... Nbd7 {[%clk 0:03:06.9]}
10. f4 {[%clk 0:02:44.6]} 10... bxc4 {[%clk 0:03:01.5]} 11. e5 {[%clk
0:02:44.8]} 11... Nd5 {[%clk 0:02:58.4]} 12. Bxc4 {[%clk 0:02:44.2]} 12... N7b6
{[%clk 0:02:42.3]} 13. Bd3 {[%clk 0:02:41]} 13... Qc7 {[%clk 0:02:23.9]} 14.
Nce4 {[%clk 0:02:29.1]} 14... a5 {[%clk 0:02:15.9]} 15. Qe2 {[%clk 0:02:27.5]}
15... Bb7 {[%clk 0:01:35.2]} 16. Bd2 {[%clk 0:02:27.8]} 16... a4 {[%clk
0:01:29.2]} 17. Rac1 {[%clk 0:02:27.3]} 17... Qb8 {[%clk 0:01:21.4]} 18. h4
{[%clk 0:02:12.3]} 18... Nd7 {[%clk 0:00:56.9]} 19. h5 {[%clk 0:02:12.3]} 19...
c5 {[%clk 0:00:58.2]} 20. e6 {[%clk 0:02:08.7]} 20... fxe6 {[%clk 0:00:58.6]}
21. Ng5 {[%clk 0:02:07.7]} 21... Rf6 {[%clk 0:00:29.7]} 22. Nxe6 {[%clk
0:01:58.3]} 22... cxd4 {[%clk 0:00:28.8]} 23. hxg6 {[%clk 0:01:51.9]} 23... hxg6
{[%clk 0:00:26.1]} 24. f5 {[%clk 0:01:53.4]} 24... Ne3 {[%clk 0:00:25.3]} 25.
Bxe3 {[%clk 0:01:40.7]} 25... dxe3 {[%clk 0:00:26.4]} 26. Nxg7 {[%clk 0:01:39]}
26... Kxg7 {[%clk 0:00:24.6]} 27. fxg6 {[%clk 0:01:38.6]} 27... Rf2 {[%clk
0:00:17.9]} 28. Nh5+ {[%clk 0:01:28.2]} 28... Kg8 {[%clk 0:00:13]} 29. Rxf2
{[%clk 0:01:26.9]} 29... exf2+ {[%clk 0:00:14.2]} 30. Kf1 {[%clk 0:01:22.8]}
30... Ne5 {[%clk 0:00:14.6]} 31. Qxf2 {[%clk 0:00:59.5]} 31... Qf8 {[%clk
0:00:14]} 32. Bf5 {[%clk 0:00:54.9]} 32... Bc8 {[%clk 0:00:10.2]} 33. Rxc8
{[%clk 0:00:52.1]} 33... Rxc8 {[%clk 0:00:10.5]} 34. Be6+ {[%clk 0:00:53.3]} 1-0

[Event "*** Titled Tuesday Blitz"]
[Site "Chess.com"]
[Date "2019.08.06"]
[Round "7"]
[White "AbasovN"]
[Black "yoolund"]
[Result "1-0"]
[WhiteElo "2879"]
[BlackElo "2649"]
[TimeControl "180+2"]
[EndTime "14:36:35 PDT"]
[Termination "AbasovN won by resignation"]

1. e4 {[%clk 0:03:01.9]} 1... c6 {[%clk 0:03:01.2]} 2. d4 {[%clk 0:03:02.1]}
2... d5 {[%clk 0:03:02.6]} 3. exd5 {[%clk 0:03:04]} 3... cxd5 {[%clk 0:03:04.5]}
4. Bd3 {[%clk 0:03:05.9]} 4... Nc6 {[%clk 0:03:04.3]} 5. c3 {[%clk 0:03:07.4]}
5... Nf6 {[%clk 0:03:05.7]} 6. Nf3 {[%clk 0:03:07.5]} 6... Bg4 {[%clk
0:03:06.1]} 7. h3 {[%clk 0:03:08.1]} 7... Bh5 {[%clk 0:03:06.2]} 8. g4 {[%clk
0:03:08.1]} 8... Bg6 {[%clk 0:03:06.7]} 9. Ne5 {[%clk 0:03:10]} 9... Bxd3 {[%clk
0:03:04.6]} 10. Qxd3 {[%clk 0:03:10.8]} 10... e6 {[%clk 0:02:59.5]} 11. Bg5
{[%clk 0:03:05.8]} 11... Be7 {[%clk 0:02:55.6]} 12. Nd2 {[%clk 0:03:05.9]} 12...
Nxe5 {[%clk 0:02:46.7]} 13. dxe5 {[%clk 0:03:07.8]} 13... Nd7 {[%clk 0:02:48.1]}
14. Bxe7 {[%clk 0:03:05]} 14... Qxe7 {[%clk 0:02:47.7]} 15. f4 {[%clk
0:03:04.8]} 15... a6 {[%clk 0:02:03.3]} 16. Nf3 {[%clk 0:03:04.3]} 16... Nc5
{[%clk 0:02:04.1]} 17. Qe3 {[%clk 0:03:01.4]} 17... Ne4 {[%clk 0:02:05.5]} 18.
O-O {[%clk 0:02:55.8]} 18... h5 {[%clk 0:01:49.9]} 19. g5 {[%clk 0:02:54.6]}
19... Ng3 {[%clk 0:01:34.2]} 20. Rfd1 {[%clk 0:02:49.1]} 20... Nf5 {[%clk
0:01:34]} 21. Qb6 {[%clk 0:02:49.3]} 21... Rc8 {[%clk 0:01:21.6]} 22. Nd4 {[%clk
0:02:49.2]} 22... Nxd4 {[%clk 0:01:14.3]} 23. Rxd4 {[%clk 0:02:46.4]} 23... Rc6
{[%clk 0:01:15.5]} 24. Qb4 {[%clk 0:02:45.3]} 24... Qxb4 {[%clk 0:00:59.2]} 25.
Rxb4 {[%clk 0:02:47.2]} 25... b6 {[%clk 0:01:00.5]} 26. a4 {[%clk 0:02:47.5]}
26... Kd7 {[%clk 0:00:54.9]} 27. Rd1 {[%clk 0:02:35.9]} 27... Kc7 {[%clk
0:00:54.7]} 28. Kf2 {[%clk 0:02:37.1]} 28... Rb8 {[%clk 0:00:47.6]} 29. g6
{[%clk 0:02:35.1]} 29... Rf8 {[%clk 0:00:44]} 30. gxf7 {[%clk 0:02:29.8]} 30...
Rxf7 {[%clk 0:00:45.9]} 31. Rg1 {[%clk 0:02:31.3]} 31... Rc4 {[%clk 0:00:29.9]}
32. Rxc4+ {[%clk 0:02:30.5]} 32... dxc4 {[%clk 0:00:31.8]} 33. Ke3 {[%clk
0:02:32.2]} 33... b5 {[%clk 0:00:29]} 34. axb5 {[%clk 0:02:29.6]} 34... axb5
{[%clk 0:00:30.9]} 35. Rg6 {[%clk 0:02:28.5]} 35... Re7 {[%clk 0:00:16.5]} 36.
Kd4 {[%clk 0:02:28.8]} 36... Kc6 {[%clk 0:00:08.1]} 37. f5 {[%clk 0:02:27.5]}
37... Rd7+ {[%clk 0:00:09.3]} 38. Ke4 {[%clk 0:02:26.8]} 38... Rd2 {[%clk
0:00:10.3]} 39. Rxe6+ {[%clk 0:02:22]} 39... Kc5 {[%clk 0:00:11.7]} 40. Rg6
{[%clk 0:02:19.9]} 40... Rxb2 {[%clk 0:00:12.8]} 41. Rxg7 {[%clk 0:02:19.3]}
41... Re2+ {[%clk 0:00:12.7]} 42. Kf4 {[%clk 0:02:20.2]} 42... b4 {[%clk
0:00:12.8]} 43. cxb4+ {[%clk 0:02:20.3]} 43... Kxb4 {[%clk 0:00:14.7]} 44. e6
{[%clk 0:02:20.3]} 44... c3 {[%clk 0:00:15.8]} 45. Rc7 {[%clk 0:02:20.2]} 45...
c2 {[%clk 0:00:12.6]} 46. e7 {[%clk 0:02:08.1]} 46... Kb3 {[%clk 0:00:12]} 47.
f6 {[%clk 0:02:09]} 47... Kb2 {[%clk 0:00:08.8]} 48. Kg5 {[%clk 0:02:04]} 1-0

[Event "*** Titled Tuesday Blitz"]
[Site "Chess.com"]
[Date "2019.08.06"]
[Round "7"]
[White "ClockworkKubrick"]
[Black "doons21"]
[Result "0-1"]
[WhiteElo "2168"]
[BlackElo "2576"]
[TimeControl "180+2"]
[EndTime "14:36:35 PDT"]
[Termination "doons21 won by checkmate"]

1. e4 {[%clk 0:03:01.9]} 1... e6 {[%clk 0:03:00.7]} 2. d4 {[%clk 0:03:01]} 2...
d5 {[%clk 0:03:02.1]} 3. Nd2 {[%clk 0:02:58]} 3... Nc6 {[%clk 0:03:02.7]} 4.
Ngf3 {[%clk 0:02:58.5]} 4... Nf6 {[%clk 0:03:03.6]} 5. e5 {[%clk 0:02:59.7]}
5... Nd7 {[%clk 0:03:04.8]} 6. c3 {[%clk 0:02:59.5]} 6... f6 {[%clk 0:03:05.8]}
7. exf6 {[%clk 0:02:57.5]} 7... Qxf6 {[%clk 0:03:07.7]} 8. Bd3 {[%clk
0:02:58.2]} 8... Bd6 {[%clk 0:03:08.7]} 9. O-O {[%clk 0:02:59.1]} 9... e5 {[%clk
0:03:09.9]} 10. dxe5 {[%clk 0:02:59.8]} 10... Ndxe5 {[%clk 0:03:11.3]} 11. Nxe5
{[%clk 0:03:01.1]} 11... Nxe5 {[%clk 0:03:12.1]} 12. Be2 {[%clk 0:02:54.5]}
12... Qf4 {[%clk 0:02:43.2]} 13. g3 {[%clk 0:02:50.6]} 13... Qf6 {[%clk
0:02:44.1]} 14. Nf3 {[%clk 0:02:49.5]} 14... O-O {[%clk 0:02:13.4]} 15. Nxe5
{[%clk 0:02:47.9]} 15... Qxe5 {[%clk 0:02:08.6]} 16. Bf4 {[%clk 0:02:41.2]}
16... Rxf4 {[%clk 0:01:53.8]} 17. gxf4 {[%clk 0:02:41.4]} 17... Qxf4 {[%clk
0:01:42.3]} 18. Qxd5+ {[%clk 0:02:41.2]} 18... Kh8 {[%clk 0:01:43.7]} 19. Qg2
{[%clk 0:02:37.6]} 19... Bf5 {[%clk 0:01:44.9]} 20. Rae1 {[%clk 0:02:21.4]}
20... Rf8 {[%clk 0:01:45.8]} 21. Bf3 {[%clk 0:02:14.1]} 21... h6 {[%clk
0:01:19.3]} 22. Bxb7 {[%clk 0:02:08.8]} 22... Rf6 {[%clk 0:01:17.2]} 23. Re3
{[%clk 0:02:09.5]} 23... Bg4 {[%clk 0:01:12]} 24. Rg3 {[%clk 0:02:09.4]} 24...
h5 {[%clk 0:01:06.6]} 25. Re1 {[%clk 0:02:05.9]} 25... Bc5 {[%clk 0:01:05.7]}
26. Re8+ {[%clk 0:01:53.1]} 26... Kh7 {[%clk 0:01:05.4]} 27. Be4+ {[%clk
0:01:50.1]} 27... g6 {[%clk 0:00:55.7]} 28. h3 {[%clk 0:01:34]} 28... Bxf2+
{[%clk 0:00:51.8]} 29. Kh2 {[%clk 0:01:34.3]} 29... h4 {[%clk 0:00:48.6]} 30.
Re7+ {[%clk 0:01:19.8]} 30... Kh6 {[%clk 0:00:44.2]} 31. hxg4 {[%clk 0:01:19.2]}
31... hxg3+ {[%clk 0:00:32.7]} 32. Kh3 {[%clk 0:01:13.3]} 32... Kg5 {[%clk
0:00:33.1]} 33. Bf5 {[%clk 0:00:45.4]} 33... Rxf5 {[%clk 0:00:28.3]} 34. gxf5
{[%clk 0:00:41.3]} 34... Qh4# {[%clk 0:00:26.2]} 0-1

[Event "*** Titled Tuesday Blitz"]
[Site "Chess.com"]
[Date "2019.08.06"]
[Round "7"]
[White "ChainsOfFantasia"]
[Black "Kimster98"]
[Result "1-0"]
[WhiteElo "2505"]
[BlackElo "2608"]
[TimeControl "180+2"]
[EndTime "14:36:39 PDT"]
[Termination "ChainsOfFantasia won by resignation"]

1. d4 {[%clk 0:03:01.9]} 1... Nf6 {[%clk 0:03:00.2]} 2. Nf3 {[%clk 0:03:02.8]}
2... d5 {[%clk 0:02:58.1]} 3. c4 {[%clk 0:03:03.4]} 3... e6 {[%clk 0:02:59.6]}
4. Nc3 {[%clk 0:03:04.1]} 4... Bb4 {[%clk 0:03:00.4]} 5. Qb3 {[%clk 0:03:02.4]}
5... c5 {[%clk 0:02:50]} 6. dxc5 {[%clk 0:03:02.3]} 6... Nc6 {[%clk 0:02:43.7]}
7. Bg5 {[%clk 0:02:56.7]} 7... Qa5 {[%clk 0:02:41.4]} 8. Bxf6 {[%clk 0:02:46.4]}
8... dxc4 {[%clk 0:02:41.3]} 9. Qxc4 {[%clk 0:02:48.3]} 9... gxf6 {[%clk
0:02:41.8]} 10. Rc1 {[%clk 0:02:38.5]} 10... Qxc5 {[%clk 0:02:40.4]} 11. Qh4
{[%clk 0:02:39.2]} 11... Ke7 {[%clk 0:02:37.5]} 12. g3 {[%clk 0:02:39.2]} 12...
Bxc3+ {[%clk 0:02:32.4]} 13. bxc3 {[%clk 0:02:38.5]} 13... b6 {[%clk 0:02:31.5]}
14. Bg2 {[%clk 0:02:36]} 14... Bb7 {[%clk 0:02:29.2]} 15. Nd2 {[%clk 0:02:35.4]}
15... Na5 {[%clk 0:02:27.2]} 16. Bxb7 {[%clk 0:02:25.2]} 16... Nxb7 {[%clk
0:02:29.1]} 17. O-O {[%clk 0:02:14.6]} 17... Qg5 {[%clk 0:02:27.4]} 18. Qb4+
{[%clk 0:02:09.5]} 18... Qc5 {[%clk 0:02:27.6]} 19. Qh4 {[%clk 0:02:05.3]} 19...
Qg5 {[%clk 0:02:27.6]} 20. Qb4+ {[%clk 0:02:05.5]} 20... Qc5 {[%clk 0:02:27.3]}
21. Qf4 {[%clk 0:01:57.7]} 21... Rac8 {[%clk 0:01:32.1]} 22. Nb3 {[%clk
0:01:54.2]} 22... Qe5 {[%clk 0:01:14.7]} 23. Qa4 {[%clk 0:01:54.2]} 23... Nc5
{[%clk 0:00:36.4]} 24. Qxa7+ {[%clk 0:01:51.2]} 24... Qc7 {[%clk 0:00:37.4]} 25.
Qxc7+ {[%clk 0:01:37.8]} 25... Rxc7 {[%clk 0:00:39.3]} 26. Nxc5 {[%clk 0:01:39]}
26... Rxc5 {[%clk 0:00:36.8]} 27. Rb1 {[%clk 0:01:39.4]} 27... Rb8 {[%clk
0:00:34.3]} 28. Rb3 {[%clk 0:01:38.7]} 28... Kd6 {[%clk 0:00:35.4]} 29. Rfb1
{[%clk 0:01:37]} 29... Kc7 {[%clk 0:00:36.7]} 30. Kf1 {[%clk 0:01:37.3]} 30...
Ra5 {[%clk 0:00:31.4]} 31. a3 {[%clk 0:01:37.4]} 31... Rh5 {[%clk 0:00:29.1]}
32. h4 {[%clk 0:01:37.5]} 32... Rc5 {[%clk 0:00:29.7]} 33. Ke1 {[%clk
0:01:35.6]} 33... Rc6 {[%clk 0:00:24.9]} 34. Rb5 {[%clk 0:01:31]} 34... Rxc3
{[%clk 0:00:22]} 35. Rh5 {[%clk 0:01:31.4]} 35... Rxa3 {[%clk 0:00:21.4]} 36.
Rxh7 {[%clk 0:01:31.9]} 36... Rf8 {[%clk 0:00:22.9]} 37. h5 {[%clk 0:01:31.3]}
37... f5 {[%clk 0:00:19.6]} 38. h6 {[%clk 0:01:30.3]} 38... Ra7 {[%clk
0:00:15.9]} 39. Rg7 {[%clk 0:01:26.7]} 39... Kc6 {[%clk 0:00:14.3]} 40. h7
{[%clk 0:01:24.5]} 40... Rh8 {[%clk 0:00:14.5]} 41. Kd2 {[%clk 0:01:22.2]} 41...
Rb7 {[%clk 0:00:14]} 42. Rh1 {[%clk 0:01:16.6]} 42... f6 {[%clk 0:00:14.4]} 43.
Rc1+ {[%clk 0:01:17.2]} 1-0

[Event "*** Titled Tuesday Blitz"]
[Site "Chess.com"]
[Date "2019.08.06"]
[Round "7"]
[White "Chess_Boxer123"]
[Black "Saloni1299"]
[Result "1-0"]
[WhiteElo "2435"]
[BlackElo "2046"]
[TimeControl "180+2"]
[EndTime "14:36:39 PDT"]
[Termination "Chess_Boxer123 won by resignation"]

1. d4 {[%clk 0:03:01.9]} 1... Nf6 {[%clk 0:03:00.4]} 2. Bf4 {[%clk 0:03:02.7]}
2... g6 {[%clk 0:02:58.1]} 3. Nc3 {[%clk 0:03:03.1]} 3... d5 {[%clk 0:02:50.2]}
4. e3 {[%clk 0:03:02.2]} 4... Bg7 {[%clk 0:02:48.1]} 5. h4 {[%clk 0:03:03.4]}
5... O-O {[%clk 0:02:44.9]} 6. h5 {[%clk 0:03:04.4]} 6... c6 {[%clk 0:02:27.5]}
7. hxg6 {[%clk 0:03:02]} 7... fxg6 {[%clk 0:02:27.1]} 8. Nf3 {[%clk 0:03:02.5]}
8... Nh5 {[%clk 0:02:11.3]} 9. Be5 {[%clk 0:03:01.3]} 9... Bg4 {[%clk
0:02:08.3]} 10. Be2 {[%clk 0:02:58.6]} 10... Bxf3 {[%clk 0:02:07.3]} 11. Bxf3
{[%clk 0:03:00.5]} 11... Bxe5 {[%clk 0:02:08.3]} 12. Bxh5 {[%clk 0:02:53]} 12...
Bg7 {[%clk 0:02:08.4]} 13. Bg4 {[%clk 0:02:46.4]} 13... Qd6 {[%clk 0:02:03]} 14.
Ne2 {[%clk 0:02:46.2]} 14... e5 {[%clk 0:01:41.8]} 15. c3 {[%clk 0:02:45.3]}
15... Nd7 {[%clk 0:01:38.5]} 16. Qc2 {[%clk 0:02:18.9]} 16... Nf6 {[%clk
0:01:37.6]} 17. Bh3 {[%clk 0:02:13.4]} 17... exd4 {[%clk 0:01:26.2]} 18. Nxd4
{[%clk 0:02:06.8]} 18... Rae8 {[%clk 0:01:20.9]} 19. O-O-O {[%clk 0:02:06.8]}
19... Ne4 {[%clk 0:01:20.4]} 20. Rdf1 {[%clk 0:02:07.7]} 20... a6 {[%clk
0:01:12.5]} 21. Kb1 {[%clk 0:02:05.9]} 21... c5 {[%clk 0:01:13.6]} 22. Nf3
{[%clk 0:02:06.6]} 22... b5 {[%clk 0:01:06.4]} 23. Rd1 {[%clk 0:02:07.2]} 23...
Qc6 {[%clk 0:01:01.2]} 24. Rhf1 {[%clk 0:01:46.5]} 24... Rb8 {[%clk 0:00:53.4]}
25. Qd3 {[%clk 0:01:24.7]} 25... Rfd8 {[%clk 0:00:52]} 26. Nd2 {[%clk
0:01:22.3]} 26... c4 {[%clk 0:00:46.2]} 27. Qc2 {[%clk 0:01:19.4]} 27... Nxd2+
{[%clk 0:00:45.6]} 28. Rxd2 {[%clk 0:01:21.3]} 28... b4 {[%clk 0:00:46.8]} 29.
Rd4 {[%clk 0:01:09.7]} 29... bxc3 {[%clk 0:00:44.6]} 30. Qxc3 {[%clk 0:01:10.1]}
30... Rb5 {[%clk 0:00:32.4]} 31. Ka1 {[%clk 0:01:01.5]} 31... Rdb8 {[%clk
0:00:32.5]} 32. Rb1 {[%clk 0:01:01.5]} 32... Bxd4 {[%clk 0:00:14.4]} 33. Qxd4
{[%clk 0:01:01.7]} 33... c3 {[%clk 0:00:13.9]} 34. b3 {[%clk 0:01:02]} 34... c2
{[%clk 0:00:13.7]} 35. Rc1 {[%clk 0:01:02.2]} 35... Rc8 {[%clk 0:00:13.3]} 36.
Rxc2 {[%clk 0:00:58.7]} 36... Qc3+ {[%clk 0:00:12.3]} 37. Rxc3 {[%clk 0:00:59]}
1-0

[Event "*** Titled Tuesday Blitz"]
[Site "Chess.com"]
[Date "2019.08.06"]
[Round "7"]
[White "Mazanchenko_Dmitry"]
[Black "aquaticpineapples"]
[Result "1-0"]
[WhiteElo "2207"]
[BlackElo "2147"]
[TimeControl "180+2"]
[EndTime "14:36:44 PDT"]
[Termination "Mazanchenko_Dmitry won by checkmate"]

1. e4 {[%clk 0:03:01.9]} 1... e6 {[%clk 0:02:59.6]} 2. d4 {[%clk 0:03:02.3]}
2... d5 {[%clk 0:03:01.2]} 3. Nc3 {[%clk 0:03:04.2]} 3... Bb4 {[%clk 0:03:01.8]}
4. Ne2 {[%clk 0:03:04]} 4... Nc6 {[%clk 0:03:01.9]} 5. a3 {[%clk 0:03:00.9]}
5... Bxc3+ {[%clk 0:03:02.8]} 6. Nxc3 {[%clk 0:02:58.9]} 6... dxe4 {[%clk
0:03:03.8]} 7. Be3 {[%clk 0:02:57]} 7... f5 {[%clk 0:03:00]} 8. Qh5+ {[%clk
0:02:44.5]} 8... g6 {[%clk 0:03:00]} 9. Qd1 {[%clk 0:02:46.4]} 9... Nge7 {[%clk
0:02:43.9]} 10. Qd2 {[%clk 0:02:45.6]} 10... O-O {[%clk 0:02:41.1]} 11. O-O-O
{[%clk 0:02:39.3]} 11... Nd5 {[%clk 0:02:37.1]} 12. Bg5 {[%clk 0:02:39.2]} 12...
Qd6 {[%clk 0:02:26.5]} 13. h4 {[%clk 0:02:27.4]} 13... Nxc3 {[%clk 0:01:37.8]}
14. Qxc3 {[%clk 0:02:25.1]} 14... h5 {[%clk 0:01:24]} 15. f3 {[%clk 0:02:21.2]}
15... exf3 {[%clk 0:01:16.6]} 16. gxf3 {[%clk 0:02:23.1]} 16... e5 {[%clk
0:01:08.3]} 17. Bc4+ {[%clk 0:02:08.6]} 17... Kh7 {[%clk 0:01:07.9]} 18. dxe5
{[%clk 0:01:53.4]} 18... Qxe5 {[%clk 0:01:07.7]} 19. Qd2 {[%clk 0:01:25.2]}
19... b5 {[%clk 0:00:37]} 20. Rhe1 {[%clk 0:01:16.7]} 20... Qc5 {[%clk
0:00:35.9]} 21. Bd5 {[%clk 0:01:07]} 21... Bb7 {[%clk 0:00:25.6]} 22. Bxc6
{[%clk 0:01:02.4]} 22... Bxc6 {[%clk 0:00:24.1]} 23. Re7+ {[%clk 0:00:21.6]}
23... Kg8 {[%clk 0:00:24.8]} 24. Qf4 {[%clk 0:00:16.9]} 24... Rad8 {[%clk
0:00:22]} 25. Rde1 {[%clk 0:00:13.1]} 25... Qd6 {[%clk 0:00:20.7]} 26. Qe3
{[%clk 0:00:09.7]} 26... Rfe8 {[%clk 0:00:17.8]} 27. Qc3 {[%clk 0:00:06.5]}
27... Be4 {[%clk 0:00:07.3]} 28. Qg7# {[%clk 0:00:06]} 1-0

[Event "*** Titled Tuesday Blitz"]
[Site "Chess.com"]
[Date "2019.08.06"]
[Round "7"]
[White "marianokar"]
[Black "12teen"]
[Result "0-1"]
[WhiteElo "2444"]
[BlackElo "2653"]
[TimeControl "180+2"]
[EndTime "14:36:53 PDT"]
[Termination "12teen won by checkmate"]

1. d4 {[%clk 0:03:01.9]} 1... a6 {[%clk 0:02:59.9]} 2. c4 {[%clk 0:03:00.8]}
2... b5 {[%clk 0:03:01.4]} 3. e3 {[%clk 0:03:00.8]} 3... Bb7 {[%clk 0:03:02.3]}
4. Nf3 {[%clk 0:02:59.2]} 4... bxc4 {[%clk 0:03:00.9]} 5. Bxc4 {[%clk
0:02:59.5]} 5... e6 {[%clk 0:03:01.4]} 6. O-O {[%clk 0:02:59.3]} 6... Nf6 {[%clk
0:03:01.4]} 7. Nc3 {[%clk 0:03:00]} 7... d5 {[%clk 0:03:02.2]} 8. Bb3 {[%clk
0:02:45.9]} 8... Bd6 {[%clk 0:03:01.4]} 9. Ba4+ {[%clk 0:02:44.8]} 9... Nbd7
{[%clk 0:03:02.4]} 10. Ne5 {[%clk 0:02:45.1]} 10... O-O {[%clk 0:03:01.8]} 11.
Nc6 {[%clk 0:02:18.1]} 11... Qe8 {[%clk 0:02:34.9]} 12. Bd2 {[%clk 0:02:08.6]}
12... Nb6 {[%clk 0:02:26.2]} 13. Ne5 {[%clk 0:02:08.7]} 13... Nxa4 {[%clk
0:02:25.9]} 14. Nxa4 {[%clk 0:02:09.5]} 14... Nd7 {[%clk 0:02:06.2]} 15. Nxd7
{[%clk 0:02:02.5]} 15... Qxd7 {[%clk 0:02:08.1]} 16. Rc1 {[%clk 0:02:02.6]}
16... Rfb8 {[%clk 0:02:00.1]} 17. Nc5 {[%clk 0:01:44]} 17... Qe7 {[%clk
0:02:01.1]} 18. f4 {[%clk 0:01:15.7]} 18... Bc6 {[%clk 0:01:47.3]} 19. b3 {[%clk
0:01:07.8]} 19... Be8 {[%clk 0:01:43.6]} 20. Ba5 {[%clk 0:01:00.3]} 20... f6
{[%clk 0:01:34.5]} 21. Qg4 {[%clk 0:00:43.2]} 21... Bf7 {[%clk 0:01:30.2]} 22.
h4 {[%clk 0:00:20]} 22... Re8 {[%clk 0:01:30.5]} 23. h5 {[%clk 0:00:20.5]} 23...
h6 {[%clk 0:01:31.6]} 24. Rf3 {[%clk 0:00:20.3]} 24... Kh8 {[%clk 0:01:21.1]}
25. Rg3 {[%clk 0:00:20.6]} 25... Bg8 {[%clk 0:01:21.9]} 26. Qh4 {[%clk
0:00:17.8]} 26... e5 {[%clk 0:01:20.5]} 27. Rf1 {[%clk 0:00:15.4]} 27... exf4
{[%clk 0:01:17]} 28. Rxf4 {[%clk 0:00:13.4]} 28... Bh7 {[%clk 0:01:08.8]} 29.
Bd2 {[%clk 0:00:09.7]} 29... a5 {[%clk 0:01:05.6]} 30. Rfg4 {[%clk 0:00:10.5]}
30... Bxg3 {[%clk 0:01:06.3]} 31. Qxg3 {[%clk 0:00:11.3]} 31... Qf7 {[%clk
0:01:03]} 32. Qh4 {[%clk 0:00:11.8]} 32... c6 {[%clk 0:01:01.8]} 33. Kf2 {[%clk
0:00:11.3]} 33... Bb1 {[%clk 0:01:02.8]} 34. a3 {[%clk 0:00:11]} 34... Bc2
{[%clk 0:01:02.2]} 35. b4 {[%clk 0:00:11.8]} 35... axb4 {[%clk 0:01:02.5]} 36.
Bxb4 {[%clk 0:00:13.7]} 36... Ra7 {[%clk 0:01:02.8]} 37. Rg3 {[%clk 0:00:14.7]}
37... f5 {[%clk 0:01:02]} 38. Qh3 {[%clk 0:00:13]} 38... f4 {[%clk 0:01:01.1]}
39. exf4 {[%clk 0:00:11]} 39... Qxf4+ {[%clk 0:01:01.6]} 40. Rf3 {[%clk
0:00:11.3]} 40... Qxd4+ {[%clk 0:01:02]} 41. Kg3 {[%clk 0:00:11.6]} 41... Qe5+
{[%clk 0:00:59.5]} 42. Kh4 {[%clk 0:00:09.4]} 42... Qg5# {[%clk 0:00:59.7]} 0-1